lending/lending_fUSD_20241211
["ID","MTS","AMOUNT","RATE_DAILY","PERIOD"]
[344914399,1733875206829,16000.0,0.00022,120]
[344914401,1733875710718,150.0,0.00021751,120]
[344914402,1733875797747,295.28286713,8.439e-05,7]
[344914403,1733875831293,150.0,0.00020822,120]
[344914409,1733875831669,-200.0,9.77e-05,2]
[344914410,1733875831683,-628.91260591,9.809e-05,2]
[344914411,1733875831693,-250.0,9.809e-05,2]
[344914412,1733875831702,-300.0,9.899e-05,2]
[344914413,1733875831711,-1333.5295,9.9e-05,2]
[344914414,1733875831721,-500.0,9.9e-05,2]
[344914415,1733875831730,-500.0,9.9e-05,2]
[344914416,1733875831739,-500.0,9.9e-05,2]
[344914417,1733875831749,-500.0,9.9e-05,2]
[344914418,1733875831759,-500.0,9.9e-05,2]
[344914419,1733875831772,-233.32,9.914e-05,2]
[344914420,1733875831782,-1000.0,9.968e-05,2]
[344914421,1733875831791,-184.74,9.996e-05,2]
[344914422,1733875831802,-250.0,9.996e-05,2]
[344914423,1733875831813,-859.81,9.996e-05,2]
[344914424,1733875831822,-150.0,0.00010297,2]
[344914425,1733875831832,-1262.0,0.00010298,2]
[344914426,1733875831842,-567.0,0.00010298,2]
[344914427,1733875831851,-631.0,0.00010298,2]
[344914428,1733875831860,-2005.0,0.00010298,2]
[344914429,1733875831870,-150.0,0.00010298,2]
[344914430,1733875831879,-1894.0,0.00010298,2]
[344914431,1733875831888,-564.0,0.00010298,2]
[344914432,1733875831898,-3763.0,0.00010298,2]
[344914433,1733875831909,-1253.0,0.00010298,2]
[344914434,1733875831918,-817.0,0.00010298,2]
[344914435,1733875831928,-535.0,0.00010298,2]
[344914436,1733875831938,-932.0,0.00010298,2]
[344914437,1733875831947,-3595.0,0.00010298,2]
[344914438,1733875831956,-13723.0,0.00010298,2]
[344914439,1733875831966,-3878.0,0.00010298,2]
[344914440,1733875831977,-1167.0,0.00010298,2]
[344914441,1733875831986,-150.0,0.00010298,2]
[344914442,1733875831996,-387.547,0.000104,2]
[344914443,1733875832005,-935.97,0.00010471,2]
[344914444,1733875832015,-5431.7682326,0.000105,2]
[344914445,1733875832024,-165.524,0.00010548,2]
[344914446,1733875832033,-1775.525,0.00010551,2]
[344914447,1733875832043,-1700.0,0.0001063,2]
[344914448,1733875832052,-600.0,0.0001063,2]
[344914449,1733875832062,-999.4,0.00010658,2]
[344914451,1733875832071,-14794.5346,0.00010735,2]
[344914453,1733875832080,-2964.5286,0.00010735,2]
[344914454,1733875832089,-605.3775,0.00010735,2]
[344914456,1733875832098,-184.74,0.00010735,2]
[344914458,1733875832108,-159.75961037,0.0001074,2]
[344914461,1733875832118,-158.63133302,0.0001074,2]
[344914463,1733875832127,-300.0,0.00010756,2]
[344914465,1733875832136,-300.0,0.00010756,2]
[344914467,1733875832145,-300.0,0.00010756,2]
[344914469,1733875832155,-300.0,0.00010756,2]
[344914471,1733875832164,-300.0,0.00010756,2]
[344914473,1733875832174,-300.0,0.00010756,2]
[344914475,1733875832186,-300.0,0.00010756,2]
[344914477,1733875832195,-300.0,0.00010756,2]
[344914479,1733875832205,-300.0,0.00010756,2]
[344914481,1733875832215,-300.0,0.00010756,2]
[344914483,1733875832224,-300.0,0.00010756,3]
[344914485,1733875832233,-300.0,0.00010756,3]
[344914487,1733875832243,-300.0,0.00010756,3]
[344914489,1733875832252,-300.0,0.00010756,3]
[344914491,1733875832261,-300.0,0.00010756,3]
[344914493,1733875832271,-300.0,0.00010756,3]
[344914495,1733875832280,-300.0,0.00010756,3]
[344914497,1733875832289,-300.0,0.00010756,3]
[344914499,1733875832298,-300.0,0.00010756,3]
[344914501,1733875832307,-300.0,0.00010756,3]
[344914503,1733875832316,-1003.13,0.00010758,2]
[344914505,1733875832325,-536.88898852,0.00010758,2]
[344914507,1733875832334,-1014.99,0.00010758,2]
[344914509,1733875832344,-158.63133302,0.00010792,2]
[344914511,1733875832353,-287188.55682953,0.00010835,2]
[344914516,1733875832398,-1005929.58129968,0.00010835,2]
[344914518,1733875832407,-3000.0,0.0001084,2]
[344914520,1733875832417,-158.63133302,0.00010844,2]
[344914521,1733875832426,-1372.0,0.00010866,2]
[344914522,1733875832440,-1371.0,0.00010866,2]
[344914523,1733875832450,-1371.0,0.00010866,2]
[344914524,1733875832459,-1371.0,0.00010866,2]
[344914525,1733875832469,-768.23,0.0001087,2]
[344914526,1733875832478,-500.0,0.00010873,2]
[344914527,1733875832488,-420.0,0.00010889,2]
[344914528,1733875832497,-158.63133302,0.00010896,2]
[344914529,1733875832506,-4051.12254805,0.000109,2]
[344914530,1733875832516,-1000.0,0.000109,2]
[344914531,1733875832525,-173.23040374,0.000109,2]
[344914533,1733875832535,-1948.14263259,0.000109,2]
[344914534,1733875832544,-1948.14263254,0.000109,2]
[344914536,1733875832553,-1948.14263254,0.000109,2]
[344914538,1733875832562,-1948.14263254,0.000109,2]
[344914540,1733875832571,-1948.14263254,0.000109,2]
[344914542,1733875832581,-1948.14263254,0.000109,2]
[344914544,1733875832590,-1948.14263254,0.000109,2]
[344914546,1733875832599,-1948.14263254,0.000109,2]
[344914548,1733875832608,-1948.14263254,0.000109,2]
[344914550,1733875832617,-1948.14263254,0.000109,2]
[344914552,1733875832626,-1948.14263254,0.000109,2]
[344914554,1733875832635,-1948.14263254,0.000109,2]
[344914556,1733875832644,-1948.14263254,0.000109,2]
[344914558,1733875832653,-1948.14263254,0.000109,2]
[344914560,1733875832662,-1948.14263254,0.000109,2]
[344914562,1733875832671,-1948.14263254,0.000109,2]
[344914564,1733875832682,-495.34,0.00010906,2]
[344914566,1733875832691,-1257.0,0.00010906,2]
[344914568,1733875832700,-776.68,0.00010908,2]
[344914570,1733875832710,-3231.0285702,0.00010942,2]
[344914572,1733875832720,-6443.9382315,0.00010943,2]
[344914574,1733875832729,-3668.5433247,0.00010945,2]
[344914576,1733875832738,-3639.8140499,0.00010945,2]
[344914578,1733875832747,-158.63133302,0.00010948,2]
[344914580,1733875832757,-173.23040373,0.0001095,2]
[344914582,1733875832771,-39812.58547046,0.00010954,2]
[344914584,1733875832781,-21944.41860746,0.00010954,2]
[344914586,1733875832790,-300.0,0.00010956,3]
[344914588,1733875832799,-300.0,0.00010956,3]
[344914590,1733875832810,-300.0,0.00010956,3]
[344914592,1733875832820,-300.0,0.00010956,3]
[344914593,1733875832830,-300.0,0.00010956,3]
[344914594,1733875832840,-300.0,0.00010956,3]
[344914595,1733875832850,-300.0,0.00010956,3]
[344914597,1733875832860,-300.0,0.00010956,3]
[344914599,1733875832869,-300.0,0.00010956,3]
[344914601,1733875832878,-300.0,0.00010956,3]
[344914603,1733875832888,-300.0,0.00010956,2]
[344914605,1733875832897,-300.0,0.00010956,2]
[344914607,1733875832906,-300.0,0.00010956,2]
[344914609,1733875832916,-300.0,0.00010956,2]
[344914611,1733875832925,-300.0,0.00010956,2]
[344914613,1733875832936,-300.0,0.00010956,2]
[344914615,1733875832946,-300.0,0.00010956,2]
[344914617,1733875832955,-300.0,0.00010956,2]
[344914619,1733875832964,-300.0,0.00010956,2]
[344914621,1733875832974,-300.0,0.00010956,2]
[344914623,1733875832983,-561.58,0.00010957,2]
[344914624,1733875832993,-165.56062463,0.00010957,2]
[344914625,1733875833002,-308.95893161,0.00010958,2]
[344914626,1733875833012,-500.42832885,0.00010958,2]
[344914627,1733875833022,-500.44563049,0.00010958,2]
[344914628,1733875833031,-570.15157366,0.00010958,2]
[344914629,1733875833041,-501.50171331,0.00010958,2]
[344914630,1733875833051,-500.23545434,0.00010958,2]
[344914631,1733875833060,-500.90089621,0.00010958,2]
[344914632,1733875833069,-500.52580936,0.00010958,2]
[344914633,1733875833079,-500.52857857,0.00010958,2]
[344914634,1733875833088,-500.0,0.00010958,2]
[344914635,1733875833098,-500.0,0.00010958,2]
[344914636,1733875833107,-500.0,0.00010958,2]
[344914637,1733875833117,-500.0,0.00010958,2]
[344914638,1733875833126,-500.0,0.00010958,2]
[344914639,1733875833136,-501.42599187,0.00010958,2]
[344914640,1733875833144,-501.58296553,0.00010958,2]
[344914641,1733875833153,-500.65450696,0.00010958,2]
[344914642,1733875833160,-322.94261411,0.00010958,2]
[344914643,1733875833167,-161.80266057,0.00010958,2]
[344914644,1733875833175,-158.35115836,0.00010958,2]
[344914645,1733875833184,-500.0,0.00010958,2]
[344914646,1733875833193,-500.0,0.00010958,2]
[344914647,1733875833202,-500.0,0.00010958,2]
[344914648,1733875833210,-390.59641502,0.00010958,2]
[344914649,1733875833219,-500.0,0.00010958,2]
[344914650,1733875833228,-500.0,0.00010958,2]
[344914651,1733875833237,-500.0,0.00010958,2]
[344914652,1733875833247,-500.0,0.00010958,2]
[344914653,1733875833256,-500.0,0.00010958,2]
[344914654,1733875833265,-502.93554855,0.00010958,2]
[344914655,1733875833275,-500.86221362,0.00010958,2]
[344914656,1733875833283,-500.0,0.00010958,2]
[344914657,1733875833290,-500.0,0.00010958,2]
[344914658,1733875833299,-500.0,0.00010958,2]
[344914659,1733875833308,-500.0,0.00010958,2]
[344914660,1733875833318,-500.0,0.00010958,2]
[344914661,1733875833328,-500.0,0.00010958,2]
[344914662,1733875833338,-500.0,0.00010958,2]
[344914663,1733875833347,-500.0,0.00010958,2]
[344914664,1733875833357,-500.0,0.00010958,2]
[344914665,1733875833367,-615.09,0.00010958,2]
[344914666,1733875833377,-503.35615896,0.00010958,2]
[344914667,1733875833386,-500.0,0.00010958,2]
[344914668,1733875833396,-421.12674823,0.00010958,2]
[344914669,1733875833406,-500.0,0.00010958,2]
[344914670,1733875833415,-500.0,0.00010958,2]
[344914671,1733875833424,-500.0,0.00010958,2]
[344914672,1733875833436,-500.0,0.00010958,2]
[344914673,1733875833446,-500.0,0.00010958,2]
[344914674,1733875833456,-267.74812736,0.00010958,2]
[344914675,1733875833465,-500.0,0.00010958,2]
[344914676,1733875833475,-500.0,0.00010958,2]
[344914677,1733875833483,-500.0,0.00010958,2]
[344914678,1733875833493,-500.0,0.00010958,2]
[344914679,1733875833502,-500.0,0.00010958,2]
[344914680,1733875833512,-500.0,0.00010958,2]
[344914681,1733875833522,-500.0,0.00010958,2]
[344914682,1733875833531,-500.0,0.00010958,2]
[344914683,1733875833540,-500.0,0.00010958,2]
[344914684,1733875833549,-500.0,0.00010958,2]
[344914685,1733875833559,-500.0,0.00010958,2]
[344914686,1733875833569,-500.0,0.00010958,2]
[344914687,1733875833579,-364.10256061,0.00010958,2]
[344914688,1733875833588,-501.11430844,0.00010958,2]
[344914689,1733875833597,-500.0,0.00010958,2]
[344914690,1733875833607,-500.0,0.00010958,2]
[344914691,1733875833616,-500.0,0.00010958,2]
[344914692,1733875833626,-500.0,0.00010958,2]
[344914693,1733875833636,-500.0,0.00010958,2]
[344914694,1733875833645,-500.0,0.00010958,2]
[344914695,1733875833654,-501.41131447,0.00010958,2]
[344914696,1733875833664,-500.0,0.00010958,2]
[344914697,1733875833673,-369.5443019,0.00010958,2]
[344914698,1733875833686,-500.0,0.00010958,2]
[344914699,1733875833695,-500.0,0.00010958,2]
[344914700,1733875833705,-479.84662098,0.00010958,2]
[344914701,1733875833715,-376.91454148,0.00010958,2]
[344914702,1733875833725,-500.0,0.00010958,2]
[344914703,1733875833734,-500.0,0.00010958,2]
[344914704,1733875833744,-500.0,0.00010958,2]
[344914705,1733875833754,-500.0,0.00010958,2]
[344914706,1733875833766,-500.0,0.00010958,2]
[344914707,1733875833776,-500.0,0.00010958,2]
[344914708,1733875833787,-500.65608426,0.00010958,2]
[344914709,1733875833796,-500.0,0.00010958,2]
[344914710,1733875833806,-500.0,0.00010958,2]
[344914711,1733875833818,-500.0,0.00010958,2]
[344914712,1733875833827,-500.0,0.00010958,2]
[344914713,1733875833837,-198.10219521,0.00010958,2]
[344914714,1733875833849,-500.0,0.00010958,2]
[344914715,1733875833860,-500.0,0.00010958,2]
[344914716,1733875833870,-500.0,0.00010958,2]
[344914717,1733875833880,-500.0,0.00010958,2]
[344914718,1733875833890,-277.17140778,0.00010958,2]
[344914719,1733875833900,-504.91059203,0.00010958,2]
[344914720,1733875833910,-500.0,0.00010958,2]
[344914721,1733875833919,-500.0,0.00010958,2]
[344914722,1733875833930,-500.0,0.00010958,2]
[344914723,1733875833944,-500.0,0.00010958,2]
[344914724,1733875833954,-500.0,0.00010958,2]
[344914725,1733875833964,-500.0,0.00010958,2]
[344914726,1733875833975,-500.0,0.00010958,2]
[344914727,1733875833985,-500.0,0.00010958,2]
[344914728,1733875833995,-500.0,0.00010958,2]
[344914729,1733875834005,-500.0,0.00010958,2]
[344914730,1733875834014,-500.0,0.00010958,2]
[344914731,1733875834024,-500.0,0.00010958,2]
[344914732,1733875834034,-500.0,0.00010958,2]
[344914733,1733875834044,-500.0,0.00010958,2]
[344914734,1733875834053,-500.0,0.00010958,2]
[344914735,1733875834063,-321.49075902,0.00010958,2]
[344914736,1733875834072,-500.0,0.00010958,2]
[344914737,1733875834082,-500.0,0.00010958,2]
[344914738,1733875834091,-500.0,0.00010958,2]
[344914739,1733875834101,-500.0,0.00010958,2]
[344914740,1733875834112,-501.33145179,0.00010958,2]
[344914741,1733875834121,-500.0,0.00010958,2]
[344914742,1733875834131,-500.0,0.00010958,2]
[344914743,1733875834140,-500.0,0.00010958,2]
[344914744,1733875834150,-500.0,0.00010958,2]
[344914745,1733875834159,-540.4,0.00010958,2]
[344914746,1733875834169,-500.0,0.00010958,2]
[344914747,1733875834178,-500.0,0.00010958,2]
[344914748,1733875834192,-500.0,0.00010958,2]
[344914749,1733875834202,-500.0,0.00010958,2]
[344914750,1733875834211,-504.48462979,0.00010958,2]
[344914751,1733875834221,-364.49012574,0.00010958,2]
[344914752,1733875834231,-500.0,0.00010958,2]
[344914753,1733875834241,-500.0,0.00010958,2]
[344914754,1733875834251,-500.0,0.00010958,2]
[344914755,1733875834261,-439.27060939,0.00010958,2]
[344914756,1733875834271,-500.0,0.00010958,2]
[344914757,1733875834280,-500.0,0.00010958,2]
[344914758,1733875834289,-500.0,0.00010958,2]
[344914759,1733875834299,-500.0,0.00010958,2]
[344914760,1733875834309,-500.0,0.00010958,2]
[344914761,1733875834318,-500.0,0.00010958,2]
[344914762,1733875834328,-500.0,0.00010958,2]
[344914763,1733875834337,-500.0,0.00010958,2]
[344914764,1733875834347,-500.0,0.00010958,2]
[344914765,1733875834357,-500.0,0.00010958,2]
[344914766,1733875834367,-500.0,0.00010958,2]
[344914767,1733875834377,-500.0,0.00010958,2]
[344914768,1733875834386,-500.0,0.00010958,2]
[344914769,1733875834395,-631.34572601,0.00010958,2]
[344914770,1733875834405,-500.0,0.00010958,2]
[344914771,1733875834415,-500.0,0.00010958,2]
[344914772,1733875834424,-500.0,0.00010958,2]
[344914773,1733875834435,-500.0,0.00010958,2]
[344914774,1733875834448,-500.0,0.00010958,2]
[344914775,1733875834458,-500.0,0.00010958,2]
[344914776,1733875834468,-500.0,0.00010958,2]
[344914777,1733875834478,-500.0,0.00010958,2]
[344914778,1733875834487,-500.0,0.00010958,2]
[344914779,1733875834497,-500.0,0.00010958,2]
[344914780,1733875834507,-500.0,0.00010958,2]
[344914781,1733875834516,-500.0,0.00010958,2]
[344914782,1733875834525,-500.0,0.00010958,2]
[344914783,1733875834534,-500.0,0.00010958,2]
[344914784,1733875834543,-500.0,0.00010958,2]
[344914785,1733875834755,-450.75,0.00010958,2]
[344914786,1733875834770,-305.69687164,0.00010958,2]
[344914787,1733875834780,-500.0,0.00010958,2]
[344914788,1733875834789,-434.92328681,0.00010958,2]
[344914789,1733875834798,-298.02925557,0.00010958,2]
[344914790,1733875834809,-500.0,0.00010958,2]
[344914791,1733875834818,-500.0,0.00010958,2]
[344914792,1733875834828,-500.0,0.00010958,2]
[344914793,1733875834837,-500.0,0.00010958,2]
[344914794,1733875834849,-500.0,0.00010958,2]
[344914795,1733875834859,-500.0,0.00010958,2]
[344914796,1733875834869,-500.0,0.00010958,2]
[344914797,1733875834878,-500.0,0.00010958,2]
[344914798,1733875834888,-522.3,0.00010958,2]
[344914799,1733875834897,-500.0,0.00010958,2]
[344914800,1733875834907,-348.99,0.00010958,2]
[344914801,1733875834916,-500.0,0.00010958,2]
[344914802,1733875834926,-254.01260518,0.00010958,2]
[344914803,1733875834938,-500.0,0.00010958,2]
[344914804,1733875834948,-500.85305785,0.00010958,2]
[344914805,1733875834957,-500.0,0.00010958,2]
[344914806,1733875834967,-500.0,0.00010958,2]
[344914807,1733875834976,-290.84,0.00010958,2]
[344914808,1733875834986,-500.0,0.00010958,2]
[344914809,1733875834995,-500.0,0.00010958,2]
[344914810,1733875835004,-500.0,0.00010958,2]
[344914811,1733875835013,-500.0,0.00010958,2]
[344914812,1733875835022,-500.0,0.00010958,2]
[344914813,1733875835031,-224.43814661,0.00010958,2]
[344914814,1733875835041,-500.0,0.00010958,2]
[344914815,1733875835050,-500.0,0.00010958,2]
[344914816,1733875835059,-500.0,0.00010958,2]
[344914817,1733875835068,-500.0,0.00010958,2]
[344914818,1733875835077,-500.0,0.00010958,2]
[344914819,1733875835097,-500.0,0.00010958,2]
[344914820,1733875835107,-500.0,0.00010958,2]
[344914821,1733875835117,-500.0,0.00010958,2]
[344914822,1733875835127,-500.0,0.00010958,2]
[344914823,1733875835137,-500.0,0.00010958,2]
[344914824,1733875835146,-500.0,0.00010958,2]
[344914825,1733875835156,-500.0,0.00010958,2]
[344914826,1733875835165,-500.0,0.00010958,2]
[344914827,1733875835175,-500.0,0.00010958,2]
[344914828,1733875835187,-500.0,0.00010958,2]
[344914829,1733875835197,-500.0,0.00010958,2]
[344914830,1733875835206,-500.0,0.00010958,2]
[344914831,1733875835215,-500.0,0.00010958,2]
[344914832,1733875835225,-175.85,0.00010958,2]
[344914833,1733875835235,-500.0,0.00010958,2]
[344914834,1733875835244,-500.0,0.00010958,2]
[344914835,1733875835254,-500.0,0.00010958,2]
[344914836,1733875835264,-500.0,0.00010958,2]
[344914837,1733875835274,-500.0,0.00010958,2]
[344914838,1733875835284,-500.0,0.00010958,2]
[344914839,1733875835293,-500.0,0.00010958,2]
[344914840,1733875835303,-500.0,0.00010958,2]
[344914841,1733875835312,-181.74,0.00010958,2]
[344914842,1733875835322,-500.0,0.00010958,2]
[344914843,1733875835332,-2539.48,0.00010958,2]
[344914844,1733875835341,-2539.48,0.00010958,2]
[344914845,1733875835351,-2539.48,0.00010958,2]
[344914846,1733875835360,-2539.48,0.00010958,2]
[344914847,1733875835370,-2539.48,0.00010958,2]
[344914848,1733875835380,-2539.48,0.00010958,2]
[344914849,1733875835389,-2539.48,0.00010958,2]
[344914850,1733875835399,-2539.48,0.00010958,2]
[344914851,1733875835408,-2539.48,0.00010958,2]
[344914852,1733875835418,-2539.48,0.00010958,2]
[344914853,1733875835427,-2539.48,0.00010958,2]
[344914854,1733875835440,-2539.48,0.00010958,2]
[344914855,1733875835450,-500.0,0.00010958,2]
[344914856,1733875835459,-500.0,0.00010958,2]
[344914857,1733875835469,-500.0,0.00010958,2]
[344914858,1733875835478,-500.0,0.00010958,2]
[344914859,1733875835487,-311.52540718,0.00010958,2]
[344914860,1733875835497,-500.0,0.00010958,2]
[344914861,1733875835506,-500.0,0.00010958,2]
[344914862,1733875835516,-500.0,0.00010958,2]
[344914863,1733875835525,-500.0,0.00010958,2]
[344914864,1733875835535,-500.0,0.00010958,2]
[344914865,1733875835544,-500.0,0.00010958,2]
[344914866,1733875835553,-500.0,0.00010958,2]
[344914867,1733875835563,-500.0,0.00010958,2]
[344914868,1733875835572,-500.0,0.00010958,2]
[344914869,1733875835581,-500.0,0.00010958,2]
[344914870,1733875835591,-500.0,0.00010958,2]
[344914871,1733875835600,-530.46549144,0.00010958,2]
[344914872,1733875835609,-500.0,0.00010958,2]
[344914873,1733875835619,-500.0,0.00010958,2]
[344914874,1733875835628,-500.0,0.00010958,2]
[344914875,1733875835638,-500.0,0.00010958,2]
[344914876,1733875835647,-500.0,0.00010958,2]
[344914877,1733875835656,-500.0,0.00010958,2]
[344914878,1733875835666,-500.0,0.00010958,2]
[344914879,1733875835675,-500.0,0.00010958,2]
[344914880,1733875835687,-500.0,0.00010958,2]
[344914881,1733875835696,-497.18,0.00010958,2]
[344914882,1733875835705,-500.0,0.00010958,2]
[344914883,1733875835714,-500.0,0.00010958,2]
[344914884,1733875835724,-500.0,0.00010958,2]
[344914885,1733875835733,-500.0,0.00010958,2]
[344914886,1733875835742,-227.28,0.00010958,2]
[344914887,1733875835751,-500.0,0.00010958,2]
[344914888,1733875835762,-500.0,0.00010958,2]
[344914889,1733875835773,-500.0,0.00010958,2]
[344914890,1733875835783,-608.6,0.00010958,2]
[344914891,1733875835792,-500.0,0.00010958,2]
[344914892,1733875835802,-319.71811512,0.00010958,2]
[344914893,1733875835812,-500.0,0.00010958,2]
[344914894,1733875835821,-500.0,0.00010958,2]
[344914895,1733875835831,-500.0,0.00010958,2]
[344914896,1733875835842,-580.71505993,0.00010958,2]
[344914897,1733875835851,-500.0,0.00010958,2]
[344914898,1733875835861,-173.98,0.00010958,2]
[344914899,1733875835870,-500.0,0.00010958,2]
[344914900,1733875835880,-500.0,0.00010958,2]
[344914901,1733875835889,-500.0,0.00010958,2]
[344914902,1733875835899,-500.0,0.00010958,2]
[344914903,1733875835909,-500.0,0.00010958,2]
[344914904,1733875835919,-500.0,0.00010958,2]
[344914905,1733875835929,-500.0,0.00010958,2]
[344914906,1733875835941,-500.0,0.00010958,2]
[344914907,1733875835951,-500.0,0.00010958,2]
[344914908,1733875835961,-500.0,0.00010958,2]
[344914909,1733875835970,-500.0,0.00010958,2]
[344914910,1733875835979,-366.34582653,0.00010958,2]
[344914911,1733875835988,-500.0,0.00010958,2]
[344914912,1733875835998,-500.0,0.00010958,2]
[344914913,1733875836008,-500.0,0.00010958,2]
[344914914,1733875836017,-500.0,0.00010958,2]
[344914915,1733875836026,-500.0,0.00010958,2]
[344914916,1733875836036,-500.0,0.00010958,2]
[344914917,1733875836045,-500.0,0.00010958,2]
[344914918,1733875836054,-500.0,0.00010958,2]
[344914919,1733875836063,-500.0,0.00010958,2]
[344914920,1733875836073,-367.76,0.00010958,2]
[344914921,1733875836082,-579.20543482,0.00010958,2]
[344914922,1733875836092,-500.0,0.00010958,2]
[344914923,1733875836101,-500.0,0.00010958,2]
[344914924,1733875836110,-500.0,0.00010958,2]
[344914925,1733875836120,-500.0,0.00010958,2]
[344914926,1733875836129,-187.38,0.00010958,2]
[344914927,1733875836139,-616.87,0.00010958,2]
[344914928,1733875836148,-462.07,0.00010958,2]
[344914929,1733875836158,-500.0,0.00010958,2]
[344914930,1733875836167,-612.48,0.00010958,2]
[344914931,1733875836177,-612.48,0.00010958,2]
[344914932,1733875836191,-612.48,0.00010958,2]
[344914933,1733875836200,-612.48,0.00010958,2]
[344914934,1733875836210,-612.48,0.00010958,2]
[344914935,1733875836219,-612.48,0.00010958,2]
[344914936,1733875836228,-612.48,0.00010958,2]
[344914937,1733875836237,-612.48,0.00010958,2]
[344914938,1733875836247,-612.48,0.00010958,2]
[344914939,1733875836256,-612.48,0.00010958,2]
[344914940,1733875836266,-612.48,0.00010958,2]
[344914941,1733875836275,-612.48,0.00010958,2]
[344914942,1733875836285,-500.0,0.00010958,2]
[344914943,1733875836295,-500.0,0.00010958,2]
[344914944,1733875836304,-544.37979054,0.00010958,2]
[344914945,1733875836314,-588.56,0.00010958,2]
[344914946,1733875836323,-588.56,0.00010958,2]
[344914947,1733875836333,-588.56,0.00010958,2]
[344914948,1733875836342,-588.56,0.00010958,2]
[344914949,1733875836352,-588.56,0.00010958,2]
[344914950,1733875836362,-588.56,0.00010958,2]
[344914951,1733875836371,-588.56,0.00010958,2]
[344914952,1733875836380,-588.56,0.00010958,2]
[344914953,1733875836389,-588.56,0.00010958,2]
[344914954,1733875836399,-588.56,0.00010958,2]
[344914955,1733875836408,-588.56,0.00010958,2]
[344914956,1733875836418,-588.56,0.00010958,2]
[344914957,1733875836427,-500.0,0.00010958,2]
[344914958,1733875836439,-500.0,0.00010958,2]
[344914959,1733875836448,-500.0,0.00010958,2]
[344914960,1733875836458,-500.0,0.00010958,2]
[344914961,1733875836467,-500.0,0.00010958,2]
[344914962,1733875836476,-500.0,0.00010958,2]
[344914963,1733875836486,-443.1,0.00010958,2]
[344914964,1733875836495,-500.0,0.00010958,2]
[344914965,1733875836504,-431.1853027,0.00010958,2]
[344914966,1733875836513,-500.0,0.00010958,2]
[344914967,1733875836522,-500.0,0.00010958,2]
[344914968,1733875836532,-385.22430476,0.00010958,2]
[344914969,1733875836542,-385.8323829,0.00010958,2]
[344914970,1733875836551,-500.0,0.00010958,2]
[344914971,1733875836560,-400.0,0.00010958,2]
[344914972,1733875836570,-500.0,0.00010958,2]
[344914973,1733875836579,-1444.3,0.00010958,2]
[344914974,1733875836589,-500.0,0.00010958,2]
[344914975,1733875836598,-1444.3,0.00010958,2]
[344914976,1733875836607,-1444.3,0.00010958,2]
[344914977,1733875836616,-1444.3,0.00010958,2]
[344914978,1733875836625,-1444.3,0.00010958,2]
[344914979,1733875836635,-1444.3,0.00010958,2]
[344914980,1733875836645,-500.0,0.00010958,2]
[344914981,1733875836654,-1444.3,0.00010958,2]
[344914982,1733875836663,-1444.3,0.00010958,2]
[344914983,1733875836673,-1444.3,0.00010958,2]
[344914984,1733875836686,-1444.3,0.00010958,2]
[344914985,1733875836696,-500.0,0.00010958,2]